[Event "Mistrovství Čech mládeže 2023 - HD12"]
[Site "Harrachov, Czech Republic"]
[Date "2023.10.23"]
[Round "4.6"]
[White "Málek, Daniel"]
[Black "Zelenka, Tomáš"]
[Result "1-0"]
[TimeControl "90m + 30s"]
[WhiteElo "1404"]
[BlackElo "1281"]

1. e4 {[%clk 01:30:54]} {[%emt 00:00:05]} d6 {[%clk 01:30:51]} {[%emt
00:00:08]} 2. d4 {[%clk 01:30:58]} {[%emt 00:00:27]} Nf6 {[%clk 01:31:09]}
{[%emt 00:00:11]} 3. Nc3 {[%clk 01:31:17]} {[%emt 00:00:12]} g6 {[%clk
01:31:27]} {[%emt 00:00:12]} 4. Bg5 {[%clk 01:30:29]} {[%emt 00:01:18]} Bg7
{[%clk 01:31:37]} {[%emt 00:00:20]} 5. Bc4 {[%clk 01:30:18]} {[%emt 00:00:41]}
O-O {[%clk 01:31:37]} {[%emt 00:00:30]} 6. Nf3 {[%clk 01:28:13]} {[%emt
00:02:36]} c6 {[%clk 01:31:45]} {[%emt 00:00:22]} 7. Bb3 {[%clk 01:28:05]}
{[%emt 00:00:38]} Bg4 {[%clk 01:30:41]} {[%emt 00:01:33]} 8. h3 {[%clk
01:27:51]} {[%emt 00:00:44]} Bxf3 {[%clk 01:30:49]} {[%emt 00:00:22]} 9. Qxf3
{[%clk 01:28:08]} {[%emt 00:00:13]} Nbd7 {[%clk 01:30:43]} {[%emt 00:00:34]} 10.
O-O {[%clk 01:28:00]} {[%emt 00:00:40]} Qa5 {[%clk 01:30:11]} {[%emt 00:00:59]}
11. Bxf6 {[%clk 01:27:02]} {[%emt 00:01:30]} Nxf6 {[%clk 01:30:29]} {[%emt
00:00:13]} 12. Rad1 {[%clk 01:26:29]} {[%emt 00:01:03]} e5 {[%clk 01:30:13]}
{[%emt 00:00:44]} 13. d5 {[%clk 01:24:35]} {[%emt 00:02:26]} c5 {[%clk
01:28:13]} {[%emt 00:02:29]} 14. Qe3 {[%clk 01:23:28]} {[%emt 00:01:36]} b5
{[%clk 01:25:57]} {[%emt 00:02:48]} 15. a3 {[%clk 01:22:30]} {[%emt 00:01:28]}
b4 {[%clk 01:25:28]} {[%emt 00:01:00]} 16. axb4 {[%clk 01:20:45]} {[%emt
00:02:14]} cxb4 {[%clk 01:25:31]} {[%emt 00:00:27]} 17. Ra1 {[%clk 01:20:20]}
{[%emt 00:00:54]} Qc7 {[%clk 01:24:49]} {[%emt 00:01:12]} 18. Nb5 {[%clk
01:19:24]} {[%emt 00:01:27]} Qc5 {[%clk 01:24:37]} {[%emt 00:00:42]} 19. Qxc5
{[%clk 01:19:03]} {[%emt 00:00:51]} dxc5 {[%clk 01:24:57]} {[%emt 00:00:11]} 20.
f3 {[%clk 01:19:06]} {[%emt 00:00:25]} Rfc8 {[%clk 01:23:56]} {[%emt 00:01:30]}
21. Rxa7 {[%clk 01:15:23]} {[%emt 00:04:15]} Rxa7 {[%clk 01:23:22]} {[%emt
00:01:04]} 22. Nxa7 {[%clk 01:15:46]} {[%emt 00:00:07]} c4 {[%clk 01:23:31]}
{[%emt 00:00:21]} 23. Nxc8 {[%clk 01:15:20]} {[%emt 00:00:57]} cxb3 {[%clk
01:23:52]} {[%emt 00:00:09]} 24. cxb3 {[%clk 01:15:04]} {[%emt 00:00:46]} Bf8
{[%clk 01:23:43]} {[%emt 00:00:33]} 25. d6 {[%clk 01:15:08]} {[%emt 00:00:32]}
Kg7 {[%clk 01:16:37]} {[%emt 00:07:35]} 26. Rc1 {[%clk 01:14:49]} {[%emt
00:00:48]} Ne8 {[%clk 01:14:01]} {[%emt 00:03:06]} 27. d7 {[%clk 01:14:45]}
{[%emt 00:00:35]} 1-0

[Event "Mistrovství Čech mládeže 2023 - HD12"]
[Site "Harrachov, Czech Republic"]
[Date "2023.10.23"]
[Round "4.7"]
[White "Kolář, Edvard"]
[Black "Zischka, Vít"]
[Result "1-0"]
[TimeControl "90m + 30s"]
[WhiteElo "1473"]
[BlackElo "1274"]

1. d4 {[%clk 01:30:55]} {[%emt 00:00:05]} Nf6 {[%clk 01:30:52]} {[%emt
00:00:08]} 2. e3 {[%clk 01:31:19]} {[%emt 00:00:06]} d5 {[%clk 01:31:09]}
{[%emt 00:00:12]} 3. f4 {[%clk 01:31:19]} {[%emt 00:00:31]} e6 {[%clk
01:29:59]} {[%emt 00:01:40]} 4. Nf3 {[%clk 01:31:14]} {[%emt 00:00:34]} c5
{[%clk 01:29:27]} {[%emt 00:01:03]} 5. c3 {[%clk 01:30:33]} {[%emt 00:01:12]}
Nc6 {[%clk 01:28:02]} {[%emt 00:01:54]} 6. Bd3 {[%clk 01:28:25]} {[%emt
00:02:36]} Bd6 {[%clk 01:27:14]} {[%emt 00:01:19]} 7. O-O {[%clk 01:27:26]}
{[%emt 00:01:27]} O-O {[%clk 01:25:26]} {[%emt 00:02:21]} 8. Ne5 {[%clk
01:25:29]} {[%emt 00:02:26]} Qc7 {[%clk 01:22:32]} {[%emt 00:03:25]} 9. Qf3
{[%clk 01:24:21]} {[%emt 00:01:34]} Ne7 {[%clk 01:21:24]} {[%emt 00:01:41]} 10.
Qh3 {[%clk 01:21:08]} {[%emt 00:03:38]} cxd4 {[%clk 01:19:01]} {[%emt
00:02:59]} 11. Ng4 {[%clk 01:20:46]} {[%emt 00:00:50]} Ne4 {[%clk 01:13:44]}
{[%emt 00:05:49]} 12. exd4 {[%clk 01:18:59]} {[%emt 00:02:15]} Nf5 {[%clk
01:11:57]} {[%emt 00:02:18]} 13. Nd2 {[%clk 01:13:43]} {[%emt 00:05:46]} Qc6
{[%clk 01:05:11]} {[%emt 00:07:18]} 14. Ne5 {[%clk 01:10:59]} {[%emt 00:03:11]}
Bxe5 {[%clk 01:01:08]} {[%emt 00:04:35]} 15. fxe5 {[%clk 01:09:31]} {[%emt
00:01:54]} b6 {[%clk 00:51:25]} {[%emt 00:10:18]} 16. g4 {[%clk 01:05:55]}
{[%emt 00:04:05]} Ne7 {[%clk 00:48:08]} {[%emt 00:03:47]} 17. Re1 {[%clk
01:00:37]} {[%emt 00:05:42]} f5 {[%clk 00:34:13]} {[%emt 00:14:31]} 18. exf6
{[%clk 00:59:51]} {[%emt 00:01:15]} Nxf6 {[%clk 00:32:00]} {[%emt 00:02:44]} 19.
g5 {[%clk 00:58:15]} {[%emt 00:02:05]} e5 {[%clk 00:31:33]} {[%emt 00:00:57]}
20. Qg2 {[%clk 00:56:36]} {[%emt 00:02:05]} Nh5 {[%clk 00:25:47]} {[%emt
00:06:20]} 21. Rxe5 {[%clk 00:53:14]} {[%emt 00:03:51]} Nf4 {[%clk 00:25:06]}
{[%emt 00:01:11]} 22. Qg3 {[%clk 00:49:43]} {[%emt 00:03:55]} Nxd3 {[%clk
00:24:50]} {[%emt 00:00:52]} 23. Qxd3 {[%clk 00:47:56]} {[%emt 00:02:18]} Ng6
{[%clk 00:25:02]} {[%emt 00:00:18]} 24. Re1 {[%clk 00:46:26]} {[%emt 00:01:53]}
Bf5 {[%clk 00:24:16]} {[%emt 00:01:22]} 25. Qg3 {[%clk 00:44:36]} {[%emt
00:02:16]} Qd7 {[%clk 00:23:23]} {[%emt 00:01:28]} 26. Nf3 {[%clk 00:42:34]}
{[%emt 00:02:30]} Be4 {[%clk 00:22:51]} {[%emt 00:01:03]} 27. Nh4 {[%clk
00:40:28]} {[%emt 00:02:34]} Nxh4 {[%clk 00:22:49]} {[%emt 00:00:35]} 28. Qxh4
{[%clk 00:39:44]} {[%emt 00:01:14]} Qf5 {[%clk 00:22:45]} {[%emt 00:00:34]} 29.
Qg3 {[%clk 00:38:26]} {[%emt 00:01:39]} Rae8 {[%clk 00:22:18]} {[%emt
00:01:05]} 30. Be3 {[%clk 00:37:07]} {[%emt 00:01:47]} Bd3 {[%clk 00:19:14]}
{[%emt 00:03:36]} 31. Bf2 {[%clk 00:34:29]} {[%emt 00:03:08]} Re4 {[%clk
00:18:03]} {[%emt 00:01:41]} 32. Rxe4 {[%clk 00:31:51]} {[%emt 00:03:07]} Bxe4
{[%clk 00:17:48]} {[%emt 00:00:46]} 33. b3 {[%clk 00:30:15]} {[%emt 00:02:05]}
Rc8 {[%clk 00:15:12]} {[%emt 00:03:07]} 34. Rc1 {[%clk 00:25:05]} {[%emt
00:05:39]} Bb1 {[%clk 00:11:56]} {[%emt 00:03:47]} 35. a3 {[%clk 00:22:03]}
{[%emt 00:03:33]} Ba2 {[%clk 00:10:44]} {[%emt 00:01:42]} 36. b4 {[%clk
00:20:36]} {[%emt 00:01:56]} Bc4 {[%clk 00:10:10]} {[%emt 00:01:04]} 37. Re1
{[%clk 00:20:00]} {[%emt 00:01:03]} Rf8 {[%clk 00:08:21]} {[%emt 00:02:22]} 38.
Qe3 {[%clk 00:14:20]} {[%emt 00:06:08]} Kh8 {[%clk 00:06:51]} {[%emt 00:02:03]}
39. Bg3 {[%clk 00:11:47]} {[%emt 00:03:00]} Qh3 {[%clk 00:06:09]} {[%emt
00:01:14]} 40. Bf2 {[%clk 00:07:26]} {[%emt 00:04:51]} Qf5 {[%clk 00:05:10]}
{[%emt 00:01:29]} 41. Kg2 {[%clk 00:04:49]} {[%emt 00:03:07]} Bd3 {[%clk
00:04:46]} {[%emt 00:00:54]} 42. Bg3 {[%clk 00:02:16]} {[%emt 00:03:02]} Be4+
{[%clk 00:04:50]} {[%emt 00:00:27]} 43. Kg1 {[%clk 00:01:24]} {[%emt 00:01:22]}
Qh3 {[%clk 00:04:46]} {[%emt 00:00:33]} 44. Qd2 {[%clk 00:01:05]} {[%emt
00:00:48]} Kg8 {[%clk 00:04:30]} {[%emt 00:00:48]} 45. Qe2 {[%clk 00:00:33]}
{[%emt 00:01:02]} Qf5 {[%clk 00:03:35]} {[%emt 00:01:25]} 46. Qe3 {[%clk
00:00:31]} {[%emt 00:00:31]} Qg4 {[%clk 00:03:12]} {[%emt 00:00:54]} 47. c4
{[%emt 00:00:38]} Rf3 {[%clk 00:02:53]} {[%emt 00:00:41]} 48. Qd2 {[%clk
00:00:32]} {[%emt 00:00:29]} Rd3 {[%clk 00:02:07]} {[%emt 00:01:15]} 49. Qf2
{[%emt 00:00:40]} Rxa3 {[%clk 00:01:42]} {[%emt 00:00:48]} 50. cxd5 {[%clk
00:00:44]} {[%emt 00:00:17]} Rf3 {[%clk 00:01:42]} {[%emt 00:00:29]} 51. Qa2
{[%clk 00:00:31]} {[%emt 00:00:40]} Kh8 {[%clk 00:00:55]} {[%emt 00:01:21]} 52.
d6 {[%clk 00:00:31]} {[%emt 00:00:29]} Rf8 {[%clk 00:00:54]} {[%emt 00:00:31]}
53. d7 {[%clk 00:00:31]} {[%emt 00:00:30]} Rd8 {[%clk 00:01:04]} {[%emt
00:00:20]} 54. Qf7 {[%clk 00:00:32]} {[%emt 00:00:29]} 1-0

[Event "Mistrovství Čech mládeže 2023 - HD12"]
[Site "Harrachov, Czech Republic"]
[Date "2023.10.23"]
[Round "4.8"]
[White "Mauric, Jan"]
[Black "Koupil, Štěpán"]
[Result "1/2-1/2"]
[TimeControl "90m + 30s"]
[WhiteElo "1260"]
[BlackElo "1467"]

1. d4 {[%clk 01:30:18]} {[%emt 00:00:42]} d5 {[%clk 01:30:31]} {[%emt
00:00:30]} 2. Bf4 {[%clk 01:30:44]} {[%emt 00:00:04]} Nf6 {[%clk 01:30:55]}
{[%emt 00:00:06]} 3. Nf3 {[%clk 01:31:01]} {[%emt 00:00:12]} e6 {[%clk
01:30:41]} {[%emt 00:00:44]} 4. e3 {[%clk 01:29:44]} {[%emt 00:01:47]} c5
{[%clk 01:29:09]} {[%emt 00:02:02]} 5. c3 {[%clk 01:30:00]} {[%emt 00:00:14]}
Bd6 {[%clk 01:29:10]} {[%emt 00:00:29]} 6. Bg3 {[%clk 01:29:09]} {[%emt
00:01:21]} O-O {[%clk 01:27:57]} {[%emt 00:01:43]} 7. Bd3 {[%clk 01:28:31]}
{[%emt 00:01:08]} b6 {[%clk 01:26:36]} {[%emt 00:01:51]} 8. Nbd2 {[%clk
01:27:56]} {[%emt 00:01:05]} Bb7 {[%clk 01:26:09]} {[%emt 00:00:56]} 9. Bh4
{[%clk 01:26:10]} {[%emt 00:02:17]} Nbd7 {[%clk 01:24:22]} {[%emt 00:02:17]} 10.
Bg3 {[%clk 01:24:18]} {[%emt 00:02:22]} Qc7 {[%clk 01:20:38]} {[%emt 00:04:13]}
11. Bxd6 {[%clk 01:15:19]} {[%emt 00:09:30]} Qxd6 {[%clk 01:20:53]} {[%emt
00:00:15]} 12. Qe2 {[%clk 01:14:32]} {[%emt 00:01:17]} Rfe8 {[%clk 01:14:35]}
{[%emt 00:06:48]} 13. O-O {[%clk 01:14:11]} {[%emt 00:00:51]} e5 {[%clk
01:12:51]} {[%emt 00:02:13]} 14. Bc2 {[%clk 01:12:11]} {[%emt 00:02:31]} Rac8
{[%clk 00:59:40]} {[%emt 00:13:41]} 15. dxe5 {[%clk 01:08:33]} {[%emt
00:04:09]} Nxe5 {[%clk 00:59:41]} {[%emt 00:00:28]} 16. Nxe5 {[%clk 01:08:57]}
{[%emt 00:00:07]} Qxe5 {[%clk 00:58:31]} {[%emt 00:01:39]} 17. Ba4 {[%clk
01:02:23]} {[%emt 00:07:04]} Bc6 {[%clk 00:54:57]} {[%emt 00:04:04]} 18. Qa6
{[%clk 00:59:50]} {[%emt 00:03:03]} Bxa4 {[%clk 00:51:14]} {[%emt 00:04:13]} 19.
Qxa4 {[%clk 01:00:05]} {[%emt 00:00:15]} Rc7 {[%clk 00:51:04]} {[%emt
00:00:40]} 20. Rfe1 {[%clk 00:52:10]} {[%emt 00:08:24]} Rd8 {[%clk 00:40:57]}
{[%emt 00:10:38]} 21. Qd1 {[%clk 00:48:03]} {[%emt 00:04:37]} Rcd7 {[%clk
00:37:31]} {[%emt 00:03:56]} 22. Qf3 {[%clk 00:46:55]} {[%emt 00:01:39]} Ne4
{[%clk 00:35:09]} {[%emt 00:02:50]} 23. Re2 {[%clk 00:38:14]} {[%emt 00:09:12]}
Rd6 {[%clk 00:31:43]} {[%emt 00:03:56]} 24. g3 {[%clk 00:33:20]} {[%emt
00:05:25]} Rf6 {[%clk 00:27:50]} {[%emt 00:04:23]} 25. Qg2 {[%clk 00:33:04]}
{[%emt 00:00:45]} h5 {[%clk 00:25:42]} {[%emt 00:02:37]} 26. h4 {[%clk
00:31:44]} {[%emt 00:01:51]} Rg6 {[%clk 00:22:56]} {[%emt 00:03:15]} 27. Nxe4
{[%clk 00:29:05]} {[%emt 00:03:10]} dxe4 {[%clk 00:21:35]} {[%emt 00:01:51]} 28.
Qf1 {[%clk 00:28:35]} {[%emt 00:01:00]} Qe7 {[%clk 00:20:15]} {[%emt 00:01:50]}
29. Kh2 {[%clk 00:22:35]} {[%emt 00:06:30]} Rgd6 {[%clk 00:19:36]} {[%emt
00:01:09]} 30. c4 {[%clk 00:18:21]} {[%emt 00:04:45]} Qf6 {[%clk 00:18:36]}
{[%emt 00:01:29]} 31. Rb1 {[%clk 00:14:24]} {[%emt 00:04:27]} Qf3 {[%clk
00:17:41]} {[%emt 00:01:25]} 32. Qe1 {[%clk 00:13:58]} {[%emt 00:00:56]} f5
{[%clk 00:16:22]} {[%emt 00:01:48]} 33. Rc1 {[%clk 00:12:23]} {[%emt 00:02:06]}
Rd3 {[%clk 00:15:58]} {[%emt 00:00:54]} 34. Rb1 {[%clk 00:11:15]} {[%emt
00:01:39]} a6 {[%clk 00:10:31]} {[%emt 00:05:57]} 35. Kg1 {[%clk 00:10:09]}
{[%emt 00:01:35]} b5 {[%clk 00:10:01]} {[%emt 00:01:00]} 36. b3 {[%clk
00:10:26]} {[%emt 00:00:13]} Kh7 {[%clk 00:08:28]} {[%emt 00:02:03]} 37. Rc1
{[%clk 00:09:50]} {[%emt 00:01:07]} bxc4 {[%clk 00:07:46]} {[%emt 00:01:11]} 38.
bxc4 {[%clk 00:10:12]} {[%emt 00:00:09]} Kh8 {[%clk 00:07:06]} 1/2-1/2

[Event "Mistrovství Čech mládeže 2023 - HD12"]
[Site "Harrachov, Czech Republic"]
[Date "2023.10.23"]
[Round "4.9"]
[White "Ta, Xuan Nguyen"]
[Black "Frantsev, Iegor"]
[Result "1-0"]
[TimeControl "90m + 30s"]
[WhiteElo "1252"]
[BlackElo "1397"]

1. e4 {[%clk 01:28:47]} {[%emt 00:02:12]} d5 {[%clk 01:30:45]} {[%emt
00:00:15]} 2. exd5 {[%clk 01:28:16]} {[%emt 00:01:01]} Qxd5 {[%clk 01:31:07]}
{[%emt 00:00:08]} 3. Nc3 {[%clk 01:28:02]} {[%emt 00:00:43]} Qd8 {[%emt
00:01:27]} 4. Nf3 {[%clk 01:27:19]} {[%emt 00:00:02]} Nf6 {[%clk 01:31:20]}
{[%emt 00:00:31]} 5. Bc4 {[%clk 01:27:00]} {[%emt 00:00:49]} g6 {[%clk
01:31:27]} {[%emt 00:00:23]} 6. Ne5 {[%clk 01:26:40]} {[%emt 00:00:51]} e6
{[%clk 01:30:49]} {[%emt 00:01:09]} 7. d4 {[%clk 01:26:28]} {[%emt 00:00:41]}
Bg7 {[%clk 01:30:56]} {[%emt 00:00:23]} 8. O-O {[%clk 01:26:09]} {[%emt
00:00:50]} O-O {[%clk 01:30:48]} {[%emt 00:00:38]} 9. Bg5 {[%clk 01:25:02]}
{[%emt 00:01:36]} h6 {[%clk 01:28:36]} {[%emt 00:02:42]} 10. Bh4 {[%clk
01:25:16]} {[%emt 00:00:16]} a6 {[%clk 01:27:16]} {[%emt 00:01:49]} 11. Qf3
{[%clk 01:24:31]} {[%emt 00:01:13]} g5 {[%clk 01:25:08]} {[%emt 00:02:41]} 12.
Bg3 {[%clk 01:24:32]} {[%emt 00:00:27]} c6 {[%clk 01:18:40]} {[%emt 00:07:00]}
13. Rad1 {[%clk 01:23:11]} {[%emt 00:01:50]} Nbd7 {[%clk 01:15:32]} {[%emt
00:03:35]} 14. Rfe1 {[%clk 01:22:47]} {[%emt 00:00:59]} Nb6 {[%clk 01:13:24]}
{[%emt 00:02:34]} 15. Bb3 {[%clk 01:22:23]} {[%emt 00:00:58]} Nbd5 {[%clk
01:11:19]} {[%emt 00:02:32]} 16. Ne2 {[%clk 01:20:18]} {[%emt 00:02:37]} Ne7
{[%clk 00:57:55]} {[%emt 00:13:52]} 17. h3 {[%clk 01:17:05]} {[%emt 00:03:45]}
Nf5 {[%emt 00:02:32]} 18. Bh2 {[%clk 01:17:20]} {[%emt 00:00:13]} Qe7 {[%clk
00:49:53]} {[%emt 00:06:30]} 19. Ng3 {[%clk 01:16:35]} {[%emt 00:01:17]} Nxg3
{[%clk 00:43:48]} {[%emt 00:06:35]} 20. Qxg3 {[%clk 01:13:59]} {[%emt
00:03:04]} Nd7 {[%clk 00:41:41]} {[%emt 00:02:37]} 21. c3 {[%clk 01:11:00]}
{[%emt 00:03:32]} Nxe5 {[%clk 00:41:35]} {[%emt 00:00:36]} 22. dxe5 {[%clk
01:11:08]} {[%emt 00:00:21]} b5 {[%emt 00:04:41]} 23. Rd6 {[%clk 01:11:05]} c5
{[%clk 00:34:19]} {[%emt 00:04:04]} 24. Bc2 {[%clk 01:11:00]} {[%emt 00:00:39]}
Bb7 {[%clk 00:33:24]} {[%emt 00:01:25]} 25. Qd3 {[%clk 01:10:54]} {[%emt
00:00:37]} f5 {[%clk 00:29:21]} {[%emt 00:04:33]} 26. Rd7 {[%clk 01:10:42]}
{[%emt 00:00:42]} Qe8 {[%clk 00:25:22]} {[%emt 00:04:28]} 27. Rxb7 {[%clk
01:10:51]} {[%emt 00:00:20]} Rd8 {[%clk 00:24:52]} {[%emt 00:01:00]} 28. Qf3
{[%clk 01:08:22]} {[%emt 00:02:58]} Rd5 {[%clk 00:23:28]} {[%emt 00:01:55]} 29.
Rd1 {[%clk 01:06:37]} {[%emt 00:02:16]} Qc6 {[%clk 00:18:17]} {[%emt 00:05:41]}
30. Rxd5 {[%clk 01:04:53]} {[%emt 00:02:14]} exd5 {[%clk 00:18:03]} {[%emt
00:00:44]} 31. Re7 {[%clk 01:04:44]} {[%emt 00:00:39]} Qg6 {[%clk 00:16:50]}
{[%emt 00:01:42]} 32. Qxd5+ {[%clk 01:04:40]} {[%emt 00:00:36]} Kh8 {[%clk
00:16:45]} {[%emt 00:00:35]} 33. e6 {[%clk 01:04:24]} {[%emt 00:00:46]} c4
{[%clk 00:13:33]} {[%emt 00:03:42]} 34. g4 {[%clk 01:01:45]} {[%emt 00:03:08]}
b4 {[%clk 00:13:12]} {[%emt 00:00:50]} 35. Bxf5 {[%clk 00:59:02]} {[%emt
00:03:13]} Qf6 {[%clk 00:13:13]} {[%emt 00:00:30]} 36. Rxg7 {[%clk 00:59:11]}
{[%emt 00:00:21]} Rd8 {[%clk 00:12:53]} {[%emt 00:00:50]} 37. Rh7+ {[%clk
00:57:36]} {[%emt 00:02:05]} Kg8 {[%clk 00:13:10]} {[%emt 00:00:13]} 38. e7+
{[%clk 00:57:34]} {[%emt 00:00:32]} 1-0

[Event "Mistrovství Čech mládeže 2023 - HD12"]
[Site "Harrachov, Czech Republic"]
[Date "2023.10.23"]
[Round "4.10"]
[White "Ježek, Jiří"]
[Black "Vorlík, Jáchym"]
[Result "1/2-1/2"]
[TimeControl "90m + 30s"]
[WhiteElo "1392"]
[BlackElo "1210"]

1. d4 {[%clk 01:30:58]} {[%emt 00:00:01]} Nf6 {[%clk 01:30:39]} {[%emt
00:00:22]} 2. c4 {[%clk 01:31:16]} {[%emt 00:00:12]} e6 {[%clk 01:31:01]}
{[%emt 00:00:08]} 3. Nc3 {[%clk 01:31:40]} {[%emt 00:00:07]} Bb4 {[%clk
01:31:15]} {[%emt 00:00:15]} 4. Bg5 {[%clk 01:29:55]} {[%emt 00:02:15]} O-O
{[%clk 01:30:08]} {[%emt 00:01:37]} 5. Nf3 {[%clk 01:26:32]} {[%emt 00:03:52]}
d5 {[%clk 01:29:52]} {[%emt 00:00:46]} 6. e3 {[%clk 01:25:48]} {[%emt
00:01:14]} h6 {[%clk 01:28:18]} {[%emt 00:02:04]} 7. Bh4 {[%clk 01:23:39]}
{[%emt 00:02:39]} Nbd7 {[%clk 01:22:27]} {[%emt 00:06:22]} 8. a3 {[%clk
01:22:26]} {[%emt 00:01:43]} Be7 {[%clk 01:22:25]} {[%emt 00:00:32]} 9. Rc1
{[%clk 01:21:56]} {[%emt 00:01:00]} dxc4 {[%clk 01:19:41]} {[%emt 00:03:14]} 10.
Bxc4 {[%clk 01:20:44]} {[%emt 00:01:42]} b6 {[%clk 01:19:40]} {[%emt 00:00:31]}
11. O-O {[%clk 01:18:50]} {[%emt 00:02:23]} Bb7 {[%clk 01:19:40]} {[%emt
00:00:30]} 12. Be2 {[%clk 01:17:35]} {[%emt 00:01:45]} Rc8 {[%clk 01:15:10]}
{[%emt 00:05:01]} 13. Nb5 {[%clk 01:09:24]} {[%emt 00:08:41]} a6 {[%clk
01:09:40]} {[%emt 00:06:00]} 14. Na7 {[%clk 01:08:24]} {[%emt 00:01:30]} Ra8
{[%clk 01:07:45]} {[%emt 00:02:25]} 15. Nc6 {[%clk 01:08:40]} {[%emt 00:00:15]}
Bxc6 {[%clk 01:07:34]} {[%emt 00:00:40]} 16. Rxc6 {[%clk 01:08:51]} {[%emt
00:00:19]} Nd5 {[%clk 01:07:03]} {[%emt 00:01:00]} 17. Bg5 {[%emt 00:02:58]}
Bf6 18. Bxf6 {[%clk 01:06:23]} Ne7 {[%clk 01:05:53]} 19. Rc1 Nxf6 {[%clk
01:01:07]} 20. Qc2 {[%clk 01:03:45]} {[%emt 00:02:52]} Ned5 {[%clk 00:59:44]}
{[%emt 00:01:53]} 21. Rfd1 {[%clk 00:58:27]} {[%emt 00:05:47]} Qe7 {[%clk
00:57:45]} {[%emt 00:02:30]} 22. g3 {[%clk 00:55:23]} {[%emt 00:03:34]} Rfc8
{[%clk 00:57:14]} {[%emt 00:01:01]} 23. e4 {[%clk 00:53:35]} {[%emt 00:02:18]}
Nxe4 {[%clk 00:55:33]} {[%emt 00:02:11]} 24. Qxe4 {[%clk 00:53:13]} {[%emt
00:00:53]} f5 {[%clk 00:54:22]} {[%emt 00:01:41]} 25. Qd3 {[%clk 00:48:12]}
{[%emt 00:05:30]} Qf6 {[%clk 00:52:48]} {[%emt 00:02:05]} 26. Qd2 {[%clk
00:41:19]} {[%emt 00:07:23]} Rf8 {[%clk 00:51:33]} {[%emt 00:01:45]} 27. Ne5
{[%clk 00:39:12]} {[%emt 00:02:37]} Rfd8 {[%clk 00:48:39]} {[%emt 00:03:24]} 28.
Bf3 {[%clk 00:36:50]} {[%emt 00:02:52]} Rac8 {[%clk 00:48:14]} {[%emt
00:00:54]} 29. Nc6 {[%clk 00:33:17]} {[%emt 00:04:03]} Rd6 {[%clk 00:47:54]}
{[%emt 00:00:50]} 30. Bxd5 {[%clk 00:31:55]} {[%emt 00:01:53]} Rxd5 {[%clk
00:47:42]} {[%emt 00:00:41]} 31. Qb4 {[%clk 00:29:30]} {[%emt 00:02:55]} Kf7
{[%clk 00:42:55]} {[%emt 00:05:18]} 32. Ne5+ {[%clk 00:13:02]} {[%emt
00:16:58]} Kg8 {[%clk 00:41:53]} {[%emt 00:01:32]} 33. Rc6 {[%clk 00:10:06]}
{[%emt 00:03:26]} Rcd8 {[%clk 00:37:25]} {[%emt 00:04:58]} 34. Rxc7 {[%clk
00:07:02]} {[%emt 00:03:33]} Rxe5 {[%clk 00:36:56]} {[%emt 00:00:58]} 35. Qxb6
{[%clk 00:02:51]} {[%emt 00:04:42]} Red5 {[%clk 00:36:41]} {[%emt 00:00:46]} 36.
Qxa6 {[%clk 00:01:41]} {[%emt 00:01:40]} Rxd4 {[%clk 00:36:47]} {[%emt
00:00:23]} 37. Rxd4 {[%clk 00:02:03]} {[%emt 00:00:09]} Rxd4 {[%clk 00:37:10]}
{[%emt 00:00:06]} 38. Qb7 {[%clk 00:01:39]} {[%emt 00:00:55]} Kh7 {[%clk
00:37:12]} {[%emt 00:00:28]} 39. Kg2 {[%clk 00:01:29]} {[%emt 00:00:40]} f4
{[%clk 00:37:30]} {[%emt 00:00:11]} 40. Qf3 {[%clk 00:01:18]} {[%emt 00:00:41]}
e5 {[%clk 00:37:24]} {[%emt 00:00:36]} 41. Rc2 {[%clk 00:00:40]} {[%emt
00:01:08]} Qf5 {[%clk 00:37:14]} {[%emt 00:00:40]} 42. Re2 {[%clk 00:00:43]}
{[%emt 00:00:28]} g5 {[%clk 00:37:11]} {[%emt 00:00:33]} 43. Qb7+ {[%clk
00:00:39]} {[%emt 00:00:33]} Kg6 {[%clk 00:37:21]} {[%emt 00:00:20]} 44. Qc6+
{[%clk 00:00:34]} {[%emt 00:00:36]} Qf6 {[%clk 00:37:17]} {[%emt 00:00:33]} 45.
Qxf6+ {[%clk 00:00:54]} {[%emt 00:00:11]} Kxf6 {[%clk 00:37:40]} {[%emt
00:00:07]} 46. Rc2 {[%clk 00:00:39]} {[%emt 00:00:45]} Kf5 {[%clk 00:37:48]}
{[%emt 00:00:22]} 47. Rc6 {[%clk 00:00:41]} {[%emt 00:00:28]} g4 {[%clk
00:37:47]} {[%emt 00:00:31]} 48. gxf4 {[%clk 00:00:42]} {[%emt 00:00:29]} exf4
{[%clk 00:38:07]} {[%emt 00:00:10]} 49. Rc5+ {[%clk 00:00:42]} {[%emt
00:00:30]} Kg6 {[%clk 00:38:19]} {[%emt 00:00:18]} 50. Rc1 {[%clk 00:00:40]}
{[%emt 00:00:32]} h5 {[%clk 00:38:38]} {[%emt 00:00:11]} 51. h3 {[%clk
00:00:40]} {[%emt 00:00:29]} Kg5 {[%clk 00:38:46]} {[%emt 00:00:22]} 52. hxg4
{[%clk 00:00:45]} {[%emt 00:00:26]} hxg4 {[%clk 00:38:53]} {[%emt 00:00:23]} 53.
Rc8 {[%clk 00:00:38]} {[%emt 00:00:37]} Rd2 {[%clk 00:39:02]} {[%emt 00:00:21]}
54. Rg8+ {[%clk 00:00:39]} {[%emt 00:00:29]} Kf5 {[%clk 00:39:22]} {[%emt
00:00:10]} 55. Rf8+ {[%clk 00:00:41]} {[%emt 00:00:28]} Kg5 {[%clk 00:39:47]}
{[%emt 00:00:04]} 56. Rg8+ {[%clk 00:00:48]} {[%emt 00:00:24]} Kf5 {[%clk
00:40:12]} {[%emt 00:00:06]} 57. Rf8+ {[%clk 00:00:50]} {[%emt 00:00:27]} Kg5
{[%clk 00:40:28]} {[%emt 00:00:14]} 58. Rg8+ {[%clk 00:00:49]} {[%emt
00:00:28]} 1/2-1/2